fUSD/lending_fUSD_20250212
["ID","MTS","AMOUNT","RATE_DAILY","PERIOD"]
[352800532,1739326241346,-500.0,0.00016438,2]
[352800533,1739326241357,-518.90755565,0.00016438,2]
[352800534,1739326241367,-508.7510132,0.00016438,2]
[352800535,1739326241377,-510.99823932,0.00016438,2]
[352800536,1739326241386,-513.84970655,0.00016438,2]
[352800537,1739326241396,-513.05740685,0.00016438,2]
[352800538,1739326241407,-514.70720746,0.00016438,2]
[352800539,1739326241417,-502.51358927,0.00016438,2]
[352800540,1739326241427,-521.43759193,0.00016438,2]
[352800541,1739326241436,-518.75224406,0.00016438,2]
[352800542,1739326241446,-518.19924223,0.00016438,2]
[352800543,1739326241455,-503.17872446,0.00016438,2]
[352800544,1739326241464,-513.56837729,0.00016438,2]
[352800545,1739326241473,-508.07033216,0.00016438,2]
[352800546,1739326241482,-513.18211305,0.00016438,2]
[352800547,1739326241492,-510.37319928,0.00016438,2]
[352800548,1739326241501,-524.25171874,0.00016438,2]
[352800549,1739326241510,-506.73598408,0.00016438,2]
[352800550,1739326241519,-466.96050453,0.00016438,2]
[352800551,1739326241528,-300.0,0.00016438,2]
[352800552,1739326241537,-634.34680553,0.00016438,2]
[352800553,1739326241546,-526.05651836,0.00016438,2]
[352800554,1739326241555,-506.18811258,0.00016438,2]
[352800555,1739326241564,-508.25994036,0.00016438,2]
[352800556,1739326241573,-515.19769335,0.00016438,2]
[352800557,1739326241582,-525.39485652,0.00016438,2]
[352800558,1739326241591,-510.51929011,0.00016438,2]
[352800559,1739326241600,-500.0,0.00016438,2]
[352800560,1739326241609,-508.10777116,0.00016438,2]
[352800561,1739326241618,-518.01028363,0.00016438,2]
[352800562,1739326241627,-178.226233,0.00016438,2]
[352800563,1739326241636,-515.56051069,0.00016438,2]
[352800564,1739326241645,-514.30022393,0.00016438,2]
[352800565,1739326241654,-500.0,0.00016438,2]
[352800566,1739326241663,-512.21958973,0.00016438,2]
[352800567,1739326241672,-230.84490785,0.00016438,2]
[352800568,1739326241681,-522.20186171,0.00016438,2]
[352800569,1739326241691,-525.18914811,0.00016438,2]
[352800570,1739326241700,-509.73575319,0.00016438,2]
[352800571,1739326241710,-514.87381438,0.00016438,2]
[352800572,1739326241718,-500.0,0.00016438,2]
[352800573,1739326241728,-535.89014792,0.00016438,2]
[352800574,1739326241737,-516.74340372,0.00016438,2]
[352800575,1739326241747,-518.57903779,0.00016438,2]
[352800576,1739326241757,-527.78262428,0.00016438,2]
[352800577,1739326241767,-501.60697767,0.00016438,2]
[352800578,1739326241776,-500.0,0.00016438,2]
[352800579,1739326241786,-514.52605598,0.00016438,2]
[352800580,1739326241795,-567.59733926,0.00016438,2]
[352800581,1739326241804,-513.51010881,0.00016438,2]
[352800582,1739326241813,-527.09268981,0.00016438,2]
[352800583,1739326241822,-514.12588785,0.00016438,2]
[352800584,1739326241832,-547.90900365,0.00016438,2]
[352800585,1739326241842,-626.74524012,0.00016438,2]
[352800586,1739326241854,-267.75917701,0.00016438,2]
[352800587,1739326241863,-510.17269584,0.00016438,2]
[352800588,1739326241873,-500.0,0.00016438,2]
[352800589,1739326241882,-523.22372187,0.00016438,2]
[352800590,1739326241893,-504.0427923,0.00016438,2]
[352800591,1739326241902,-434.49369906,0.00016438,2]
[352800592,1739326241911,-501.7268658,0.00016438,2]
[352800593,1739326241920,-513.92199942,0.00016438,2]
[352800594,1739326241932,-503.79934886,0.00016438,2]
[352800595,1739326241942,-217.96878016,0.00016438,2]
[352800596,1739326241953,-500.0,0.00016438,2]
[352800597,1739326241963,-517.34173163,0.00016438,2]
[352800598,1739326241972,-519.83263137,0.00016438,2]
[352800599,1739326241982,-535.17488683,0.00016438,2]
[352800600,1739326241994,-520.70343221,0.00016438,2]
[352800601,1739326242003,-519.67179889,0.00016438,2]
[352800602,1739326242012,-520.10883722,0.00016438,2]
[352800603,1739326242021,-502.04038561,0.00016438,2]
[352800604,1739326242031,-500.0,0.00016438,2]
[352800605,1739326242040,-516.69451949,0.00016438,2]
[352800606,1739326242050,-518.42992312,0.00016438,2]
[352800607,1739326242062,-507.2233977,0.00016438,2]
[352800608,1739326242071,-500.0,0.00016438,2]
[352800609,1739326242082,-500.0,0.00016438,2]
[352800610,1739326242093,-529.39333773,0.00016438,2]
[352800611,1739326242102,-549.06276655,0.00016438,2]
[352800612,1739326242112,-502.2795612,0.00016438,2]
[352800613,1739326242121,-514.80782197,0.00016438,2]
[352800614,1739326242130,-504.03210804,0.00016438,2]
[352800615,1739326242139,-548.71988305,0.00016438,2]
[352800616,1739326242149,-500.0,0.00016438,2]
[352800617,1739326242158,-525.25700216,0.00016438,2]
[352800618,1739326242168,-523.82875037,0.00016438,2]
[352800619,1739326242178,-534.25454203,0.00016438,2]
[352800620,1739326242189,-504.81131042,0.00016438,2]
[352800621,1739326242200,-433.6601293,0.00016438,2]
[352800622,1739326242210,-508.34833426,0.00016438,2]
[352800623,1739326242220,-500.0,0.00016438,2]
[352800624,1739326242229,-242.04533252,0.00016438,2]
[352800625,1739326242240,-519.44416429,0.00016438,2]
[352800626,1739326242250,-531.0,0.00016438,2]
[352800627,1739326242259,-415.34523658,0.00016438,2]
[352800628,1739326242427,-380.91065998,0.00016438,2]
[352800629,1739326242436,-503.25628514,0.00016438,2]
[352800630,1739326242446,-500.0,0.00016438,2]
[352800631,1739326242455,-520.45816654,0.00016438,2]
[352800632,1739326242464,-500.0,0.00016438,2]
[352800633,1739326242473,-515.45296155,0.00016438,2]
[352800634,1739326242483,-527.31639188,0.00016438,2]
[352800635,1739326242492,-504.16948822,0.00016438,2]
[352800636,1739326242502,-502.41366313,0.00016438,2]
[352800637,1739326242512,-200.0,0.00016438,2]
[352800638,1739326242521,-559.21479178,0.00016438,2]
[352800639,1739326242531,-501.64624863,0.00016438,2]
[352800640,1739326242541,-507.59611802,0.00016438,2]
[352800641,1739326242550,-512.09346869,0.00016438,2]
[352800642,1739326242560,-554.15,0.00016438,2]
[352800643,1739326242569,-185.47769797,0.00016438,2]
[352800644,1739326242578,-518.82494475,0.00016438,2]
[352800645,1739326242587,-508.75530545,0.00016438,2]
[352800646,1739326242596,-500.0,0.00016438,2]
[352800647,1739326242605,-198.812735,0.00016438,2]
[352800648,1739326242614,-484.77,0.00016438,2]
[352800649,1739326242623,-502.88410493,0.00016438,2]
[352800650,1739326242632,-503.1756638,0.00016438,2]
[352800651,1739326242641,-399.22863005,0.00016438,2]
[352800652,1739326242651,-500.0,0.00016438,2]
[352800653,1739326242660,-526.1297529,0.00016438,2]
[352800654,1739326242669,-509.04016044,0.00016438,2]
[352800655,1739326242678,-500.0,0.00016438,2]
[352800656,1739326242687,-508.08747585,0.00016438,2]
[352800657,1739326242696,-502.99124796,0.00016438,2]
[352800658,1739326242706,-502.55575996,0.00016438,2]
[352800659,1739326242714,-570.74,0.00016438,2]
[352800660,1739326242723,-569.4,0.00016438,2]
[352800661,1739326242733,-500.0,0.00016438,2]
[352800662,1739326242742,-624.18628875,0.00016438,2]
[352800663,1739326242752,-505.91824883,0.00016438,2]
[352800664,1739326242761,-505.82840504,0.00016438,2]
[352800665,1739326242770,-503.74911094,0.00016438,2]
[352800666,1739326242779,-447.15122995,0.00016438,2]
[352800667,1739326242788,-504.87179914,0.00016438,2]
[352800668,1739326242797,-502.33935311,0.00016438,2]
[352800669,1739326242806,-500.0,0.00016438,2]
[352800670,1739326242815,-205.84201971,0.00016438,2]
[352800671,1739326242824,-502.1174892,0.00016438,2]
[352800672,1739326242834,-259.54548533,0.00016438,2]
[352800673,1739326242843,-500.0,0.00016438,2]
[352800674,1739326242858,-500.0,0.00016438,2]
[352800675,1739326242867,-507.34019105,0.00016438,2]
[352800676,1739326242876,-505.17404836,0.00016438,2]
[352800677,1739326242886,-511.16491387,0.00016438,2]
[352800678,1739326242897,-506.98311492,0.00016438,2]
[352800679,1739326242906,-233.26278835,0.00016438,2]
[352800680,1739326242915,-505.99785458,0.00016438,2]
[352800682,1739326242924,-500.0,0.00016438,2]
[352800683,1739326242934,-500.0,0.00016438,2]
[352800685,1739326242944,-362.20653911,0.00016438,2]
[352800688,1739326242953,-505.09400329,0.00016438,2]
[352800690,1739326242962,-505.92221025,0.00016438,2]
[352800692,1739326242976,-500.0,0.00016438,2]
[352800694,1739326242985,-514.91290382,0.00016438,2]
[352800696,1739326242994,-504.24420387,0.00016438,2]
[352800698,1739326243003,-504.26437934,0.00016438,2]
[352800700,1739326243013,-500.0,0.00016438,2]
[352800701,1739326243022,-505.35135131,0.00016438,2]
[352800702,1739326243031,-454.46804021,0.00016438,2]
[352800703,1739326243040,-509.88368601,0.00016438,2]
[352800704,1739326243049,-508.72405585,0.00016438,2]
[352800705,1739326243058,-505.66754183,0.00016438,2]
[352800707,1739326243067,-201.36427871,0.00016438,2]
[352800709,1739326243076,-502.23625178,0.00016438,2]
[352800710,1739326243085,-232.09891099,0.00016438,2]
[352800711,1739326243094,-502.67018544,0.00016438,2]
[352800712,1739326243103,-500.0,0.00016438,2]
[352800714,1739326243112,-506.33971404,0.00016438,2]
[352800715,1739326243121,-503.37819157,0.00016438,2]
[352800716,1739326243130,-503.20704303,0.00016438,2]
[352800717,1739326243139,-277.66473775,0.00016438,2]
[352800718,1739326243148,-206.25712759,0.00016438,2]
[352800719,1739326243157,-372.38096011,0.00016438,2]
[352800720,1739326243167,-510.78444752,0.00016438,2]
[352800721,1739326243176,-500.0,0.00016438,2]
[352800722,1739326243187,-506.73778968,0.00016438,2]
[352800723,1739326243196,-505.78069844,0.00016438,2]
[352800724,1739326243207,-476.6816107,0.00016438,2]
[352800725,1739326243216,-506.25351318,0.00016438,2]
[352800726,1739326243225,-235.65060601,0.00016438,2]
[352800727,1739326243236,-500.0,0.00016438,2]
[352800728,1739326243246,-509.66885032,0.00016438,2]
[352800729,1739326243255,-503.61268485,0.00016438,2]
[352800730,1739326243265,-351.28854758,0.00016438,2]
[352800731,1739326243274,-499.6693458,0.00016438,2]
[352800732,1739326243284,-507.41452495,0.00016438,2]
[352800733,1739326243294,-510.04833089,0.00016438,2]
[352800734,1739326243305,-520.30540507,0.00016438,2]
[352800735,1739326243315,-524.21635717,0.00016438,2]
[352800736,1739326243325,-506.70555697,0.00016438,2]
[352800737,1739326243333,-500.64386519,0.00016438,2]
[352800738,1739326243342,-500.0,0.00016438,2]
[352800739,1739326243351,-500.0,0.00016438,2]
[352800740,1739326243360,-500.0,0.00016438,2]
[352800741,1739326243370,-500.0,0.00016438,2]
[352800742,1739326243379,-279.95970034,0.00016438,2]
[352800743,1739326243388,-513.15176696,0.00016438,2]
[352800744,1739326243397,-522.57936178,0.00016438,2]
[352800745,1739326243407,-511.6819861,0.00016438,2]
[352800746,1739326243416,-500.0,0.00016438,2]
[352800747,1739326243425,-491.31456328,0.00016438,2]
[352800748,1739326243434,-510.3685896,0.00016438,2]
[352800749,1739326243443,-500.0,0.00016438,2]
[352800750,1739326243452,-509.3572793,0.00016438,2]
[352800751,1739326243462,-513.61077345,0.00016438,2]
[352800752,1739326243471,-500.0,0.00016438,2]
[352800753,1739326243480,-587.71,0.00016438,2]
[352800754,1739326243489,-510.02028168,0.00016438,2]
[352800755,1739326243499,-508.66359343,0.00016438,2]
[352800756,1739326243508,-500.0,0.00016438,2]
[352800757,1739326243517,-500.0,0.00016438,2]
[352800758,1739326243526,-251.42846875,0.00016438,2]
[352800759,1739326243535,-500.0,0.00016438,2]
[352800760,1739326243544,-531.07913869,0.00016438,2]
[352800761,1739326243553,-793.05,0.00016438,2]
[352800762,1739326243563,-500.0,0.00016438,2]
[352800763,1739326243572,-500.0,0.00016438,2]
[352800764,1739326243581,-507.17333971,0.00016438,2]
[352800765,1739326243590,-542.50671511,0.00016438,2]
[352800766,1739326243599,-500.0,0.00016438,2]
[352800767,1739326243608,-517.36400651,0.00016438,2]
[352800768,1739326243617,-589.48429393,0.00016438,2]
[352800769,1739326243627,-500.0,0.00016438,2]
[352800770,1739326243636,-509.16204117,0.00016438,2]
[352800771,1739326243645,-500.0,0.00016438,2]
[352800772,1739326243654,-507.90178453,0.00016438,2]
[352800773,1739326243663,-509.32413528,0.00016438,2]
[352800774,1739326243672,-500.0,0.00016438,2]
[352800775,1739326243682,-314.95162137,0.00016438,2]
[352800776,1739326243691,-500.0,0.00016438,2]
[352800777,1739326243700,-500.0,0.00016438,2]
[352800778,1739326243709,-500.0,0.00016438,2]
[352800779,1739326243719,-513.54043969,0.00016438,2]
[352800780,1739326243729,-500.0,0.00016438,2]
[352800781,1739326243739,-500.0,0.00016438,2]
[352800782,1739326243750,-1019.98613258,0.00016438,2]
[352800783,1739326243760,-500.0,0.00016438,2]
[352800784,1739326243769,-506.57732497,0.00016438,2]
[352800785,1739326243778,-500.0,0.00016438,2]
[352800786,1739326243787,-500.0,0.00016438,2]
[352800787,1739326243796,-656.52,0.00016438,2]
[352800788,1739326243805,-656.52,0.00016438,2]
[352800789,1739326243815,-656.52,0.00016438,2]
[352800790,1739326243824,-500.0,0.00016438,2]
[352800791,1739326243833,-274.50515081,0.00016438,2]
[352800792,1739326243843,-500.0,0.00016438,2]
[352800793,1739326243856,-500.0,0.00016438,2]
[352800794,1739326243866,-500.0,0.00016438,2]
[352800795,1739326243875,-500.0,0.00016438,2]
[352800796,1739326243884,-519.11955777,0.00016438,2]
[352800797,1739326243894,-515.06,0.00016438,2]
[352800798,1739326243903,-512.21104571,0.00016438,2]
[352800799,1739326243912,-414.98757131,0.00016438,2]
[352800800,1739326243922,-500.0,0.00016438,2]
[352800801,1739326243933,-507.24503514,0.00016438,2]
[352800802,1739326243943,-177.39599563,0.00016438,2]
[352800803,1739326243952,-526.45602868,0.00016438,2]
[352800804,1739326243962,-500.0,0.00016438,2]
[352800805,1739326243972,-526.74990967,0.00016438,2]
[352800806,1739326243981,-500.0,0.00016438,2]
[352800807,1739326243991,-500.0,0.00016438,2]
[352800808,1739326244002,-194.77254325,0.00016438,2]
[352800809,1739326244012,-530.23814711,0.00016438,2]
[352800810,1739326244021,-500.0,0.00016438,2]
[352800811,1739326244031,-500.0,0.00016438,2]
[352800812,1739326244040,-510.26466484,0.00016438,2]
[352800813,1739326244050,-500.0,0.00016438,2]
[352800814,1739326244060,-508.0422039,0.00016438,2]
[352800815,1739326244069,-500.0,0.00016438,2]
[352800816,1739326244078,-500.0,0.00016438,2]
[352800817,1739326244087,-547.15161636,0.00016438,2]
[352800818,1739326244097,-500.0,0.00016438,2]
[352800819,1739326244106,-535.88983451,0.00016438,2]
[352800820,1739326244116,-500.0,0.00016438,2]
[352800821,1739326244128,-500.0,0.00016438,2]
[352800822,1739326244140,-505.07779519,0.00016438,2]
[352800823,1739326244153,-500.0,0.00016438,2]
[352800824,1739326244164,-500.0,0.00016438,2]
[352800825,1739326244175,-500.0,0.00016438,2]
[352800826,1739326244186,-500.0,0.00016438,2]
[352800827,1739326244196,-500.0,0.00016438,2]
[352800828,1739326244206,-500.0,0.00016438,2]
[352800829,1739326244217,-500.0,0.00016438,2]
[352800830,1739326244228,-500.0,0.00016438,2]
[352800831,1739326244241,-500.0,0.00016438,2]
[352800832,1739326244253,-500.0,0.00016438,2]
[352800833,1739326244265,-524.89034154,0.00016438,2]
[352800834,1739326244277,-500.0,0.00016438,2]
[352800835,1739326244288,-500.0,0.00016438,2]
[352800836,1739326244300,-511.38618624,0.00016438,2]
[352800837,1739326244312,-503.43,0.00016438,2]
[352800838,1739326244328,-469.95285185,0.00016438,2]
[352800839,1739326244340,-505.07307977,0.00016438,2]
[352800840,1739326244351,-522.59041198,0.00016438,2]
[352800841,1739326244360,-383.56641784,0.00016438,2]
[352800842,1739326244374,-415.86200575,0.00016438,2]
[352800843,1739326244387,-500.0,0.00016438,2]
[352800844,1739326244398,-683.15,0.00016438,2]
[352800845,1739326244410,-500.0,0.00016438,2]
[352800846,1739326244421,-579.93219505,0.00016438,2]
[352800847,1739326244433,-521.43703346,0.00016438,2]
[352800848,1739326244445,-525.21218896,0.00016438,2]
[352800849,1739326244457,-279.4843984,0.00016438,2]
[352800850,1739326244469,-506.17136638,0.00016438,2]
[352800851,1739326244481,-500.0,0.00016438,2]
[352800852,1739326244492,-346.7525998,0.00016438,2]
[352800853,1739326244505,-500.0,0.00016438,2]
[352800854,1739326244516,-519.91048218,0.00016438,2]
[352800855,1739326244528,-500.0,0.00016438,2]
[352800856,1739326244539,-500.0,0.00016438,2]
[352800857,1739326244550,-515.03824726,0.00016438,2]
[352800858,1739326244561,-500.0,0.00016438,2]
[352800859,1739326244573,-500.0,0.00016438,2]
[352800860,1739326244585,-500.98853078,0.00016438,2]
[352800861,1739326244595,-268.29396116,0.00016438,2]
[352800862,1739326244606,-500.0,0.00016438,2]
[352800863,1739326244618,-500.0,0.00016438,2]
[352800864,1739326244629,-500.0,0.00016438,2]
[352800865,1739326244639,-500.0,0.00016438,2]
[352800866,1739326244650,-500.0,0.00016438,2]
[352800867,1739326244662,-465.27535048,0.00016438,2]
[352800868,1739326244673,-500.0,0.00016438,2]
[352800869,1739326244684,-514.59013334,0.00016438,2]
[352800870,1739326244695,-500.0,0.00016438,2]
[352800871,1739326244707,-504.16495006,0.00016438,2]
[352800872,1739326244718,-500.0,0.00016438,2]
[352800873,1739326244731,-500.0,0.00016438,2]
[352800874,1739326244742,-500.0,0.00016438,2]
[352800875,1739326244753,-500.0,0.00016438,2]
[352800876,1739326244764,-535.26579509,0.00016438,2]
[352800877,1739326244776,-611.1575911,0.00016438,2]
[352800878,1739326244787,-521.23014504,0.00016438,2]
[352800879,1739326244797,-539.36411334,0.00016438,2]
[352800880,1739326244807,-500.0,0.00016438,2]
[352800881,1739326244817,-500.0,0.00016438,2]
[352800882,1739326244828,-500.0,0.00016438,2]
[352800883,1739326244839,-500.0,0.00016438,2]
[352800884,1739326244852,-500.0,0.00016438,2]
[352800885,1739326244865,-500.0,0.00016438,2]
[352800886,1739326244877,-500.0,0.00016438,2]
[352800887,1739326244887,-494.38016299,0.00016438,2]
[352800888,1739326244898,-500.0,0.00016438,2]
[352800889,1739326244908,-500.0,0.00016438,2]
[352800890,1739326244918,-514.25711438,0.00016438,2]
[352800891,1739326244930,-500.0,0.00016438,2]
[352800892,1739326244940,-500.0,0.00016438,2]
[352800893,1739326244951,-524.4159882,0.00016438,2]
[352800894,1739326244963,-150.75,0.00016465,2]
[352800895,1739326244977,-295.608131,0.00016475,2]
[352800896,1739326244988,-41705.40783854,0.00016475,2]
[352800897,1739326245000,-500.0,0.00016534,2]
[352800898,1739326245011,-503.21687981,0.00016575,7]
[352800899,1739326245022,-2146.35,0.00016575,2]
[352800900,1739326245032,-513.28187906,0.00016575,2]
[352800901,1739326245042,-300.0,0.00016575,2]
[352800902,1739326245052,-421.01166704,0.00016575,2]
[352800903,1739326245062,-207.58148769,0.00016575,2]
[352800904,1739326245073,-516.81423209,0.00016575,2]
[352800905,1739326245083,-521.44033963,0.00016575,2]
[352800906,1739326245093,-500.0,0.00016575,2]
[352800907,1739326245103,-500.0,0.00016575,2]
[352800908,1739326245114,-248.14607077,0.00016575,2]
[352800909,1739326245125,-522.18072373,0.00016575,2]
[352800910,1739326245136,-527.20543499,0.00016575,2]
[352800911,1739326245146,-341.93925996,0.00016575,2]
[352800912,1739326245157,-520.46063049,0.00016575,2]
[352800913,1739326245167,-500.0,0.00016575,2]
[352800914,1739326245177,-200.0,0.00016575,2]
[352800915,1739326245187,-554.15,0.00016575,2]
[352800916,1739326245198,-517.28786708,0.00016575,2]
[352800917,1739326245208,-508.51714797,0.00016575,2]
[352800918,1739326245219,-510.71600422,0.00016575,2]
[352800919,1739326245230,-569.4,0.00016575,2]
[352800920,1739326245240,-378.07178449,0.00016575,2]
[352800921,1739326245253,-283.35803081,0.00016575,2]
[352800922,1739326245263,-200.27244793,0.00016575,2]
[352800923,1739326245273,-320.84014576,0.00016575,2]
[352800924,1739326245284,-286.33746229,0.00016575,2]
[352800925,1739326245295,-274.75937314,0.00016575,2]
[352800926,1739326245306,-521.37443524,0.00016575,2]
[352800927,1739326245317,-500.0,0.00016575,2]
[352800928,1739326245327,-500.0,0.00016575,2]
[352800929,1739326245338,-317.84764067,0.00016575,2]
[352800930,1739326245348,-550.26937123,0.00016575,2]
[352800931,1739326245358,-485.85963164,0.00016575,2]
[352800932,1739326245369,-513.07700739,0.00016575,2]
[352800933,1739326245379,-506.98044256,0.00016575,2]
[352800934,1739326245390,-196.6625767,0.00016575,2]
[352800935,1739326245401,-500.0,0.00016575,2]
[352800936,1739326245411,-500.0,0.00016575,2]
[352800937,1739326245421,-587.71,0.00016575,2]
[352800938,1739326245432,-500.0,0.00016575,2]
[352800939,1739326245442,-500.0,0.00016575,2]
[352800940,1739326245453,-500.0,0.00016575,2]
[352800941,1739326245463,-793.05,0.00016575,2]
[352800942,1739326245474,-500.0,0.00016575,2]
[352800943,1739326245485,-500.0,0.00016575,2]
[352800944,1739326245496,-561.06833628,0.00016575,2]
[352800945,1739326245508,-591.35687775,0.00016575,2]
[352800946,1739326245519,-500.0,0.00016575,2]
[352800947,1739326245530,-508.87300167,0.00016575,2]
[352800948,1739326245540,-500.0,0.00016575,2]
[352800949,1739326245551,-500.0,0.00016575,2]
[352800950,1739326245562,-500.0,0.00016575,2]
[352800951,1739326245573,-500.0,0.00016575,2]
[352800952,1739326245584,-500.0,0.00016575,2]
[352800953,1739326245594,-500.0,0.00016575,2]
[352800954,1739326245605,-578.21169239,0.00016575,2]
[352800955,1739326245615,-500.0,0.00016575,2]
[352800956,1739326245626,-514.31975968,0.00016575,2]
[352800957,1739326245637,-514.85510934,0.00016575,2]
[352800958,1739326245648,-500.0,0.00016575,2]
[352800959,1739326245658,-500.0,0.00016575,2]
[352800960,1739326245669,-378.47549595,0.00016575,2]
[352800961,1739326245679,-515.06,0.00016575,2]
[352800962,1739326245690,-482.21091047,0.00016575,2]
[352800963,1739326245700,-550.54989911,0.00016575,2]
[352800964,1739326245711,-500.0,0.00016575,2]
[352800965,1739326245721,-500.0,0.00016575,2]
[352800966,1739326245732,-500.0,0.00016575,2]
[352800967,1739326245743,-500.0,0.00016575,2]
[352800968,1739326245755,-500.0,0.00016575,2]
[352800969,1739326245766,-500.0,0.00016575,2]
[352800970,1739326245778,-500.0,0.00016575,2]
[352800971,1739326245793,-500.0,0.00016575,2]
[352800972,1739326245805,-500.0,0.00016575,2]
[352800973,1739326245816,-500.0,0.00016575,2]
[352800974,1739326245827,-500.0,0.00016575,2]
[352800975,1739326245837,-500.0,0.00016575,2]
[352800976,1739326245850,-500.0,0.00016575,2]
[352800977,1739326245864,-500.0,0.00016575,2]
[352800978,1739326245877,-500.0,0.00016575,2]
[352800979,1739326245888,-500.0,0.00016575,2]
[352800981,1739326245905,-500.0,0.00016575,2]
[352800982,1739326245916,-500.0,0.00016575,2]
[352800983,1739326245928,-500.0,0.00016575,2]
[352800984,1739326245939,-520.240768,0.00016575,2]
[352800986,1739326245949,-500.0,0.00016575,2]
[352800987,1739326245959,-500.0,0.00016575,2]
[352800988,1739326245970,-503.43,0.00016575,2]
[352800989,1739326245980,-500.0,0.00016575,2]
[352800990,1739326245993,-683.15,0.00016575,2]
[352800991,1739326246005,-500.0,0.00016575,2]
[352800992,1739326246015,-500.0,0.00016575,2]
[352800993,1739326246026,-500.0,0.00016575,2]
[352800995,1739326246037,-500.0,0.00016575,2]
[352800996,1739326246048,-500.0,0.00016575,2]
[352800999,1739326246059,-500.0,0.00016575,2]
[352801001,1739326246071,-500.0,0.00016575,2]
[352801003,1739326246083,-562.2788721,0.00016575,2]
[352801005,1739326246096,-500.0,0.00016575,2]
[352801006,1739326246108,-520.30633516,0.00016575,2]
[352801008,1739326246119,-500.0,0.00016575,2]
[352801009,1739326246130,-527.03489323,0.00016575,2]
[352801010,1739326246140,-500.0,0.00016575,2]
[352801011,1739326246150,-500.0,0.00016575,2]
[352801012,1739326246160,-500.0,0.00016575,2]
[352801013,1739326246363,-500.0,0.00016575,2]
[352801014,1739326246380,-500.0,0.00016575,2]
[352801015,1739326246392,-500.0,0.00016575,2]
[352801016,1739326246401,-506.41054531,0.00016575,2]
[352801017,1739326246410,-517.73234778,0.00016575,2]
[352801018,1739326246421,-524.78621485,0.00016575,2]
[352801019,1739326246431,-500.0,0.00016575,2]
[352801020,1739326246442,-538.27375784,0.00016575,2]
[352801021,1739326246451,-500.0,0.00016575,2]
[352801022,1739326246461,-500.0,0.00016575,2]
[352801023,1739326246470,-500.0,0.00016575,2]
[352801024,1739326246480,-566.54229574,0.00016575,2]
[352801025,1739326246490,-500.0,0.00016575,2]
[352801026,1739326246500,-500.0,0.00016575,2]
[352801027,1739326246510,-468.32,0.00016658,30]
[352801028,1739326246519,-204.0,0.0001669,2]
[352801029,1739326246528,-2146.35,0.00016712,2]
[352801030,1739326246538,-300.0,0.00016712,2]
[352801031,1739326246547,-500.0,0.00016712,2]
[352801032,1739326246557,-500.0,0.00016712,2]
[352801033,1739326246567,-500.0,0.00016712,2]
[352801034,1739326246576,-200.0,0.00016712,2]
[352801035,1739326246585,-554.15,0.00016712,2]
[352801036,1739326246595,-569.4,0.00016712,2]
[352801037,1739326246604,-500.0,0.00016712,2]
[352801038,1739326246614,-500.0,0.00016712,2]
[352801039,1739326246624,-500.0,0.00016712,2]
[352801040,1739326246633,-273.03167432,0.00016712,2]
[352801041,1739326246643,-587.71,0.00016712,2]
[352801042,1739326246652,-500.0,0.00016712,2]
[352801043,1739326246662,-500.0,0.00016712,2]
[352801044,1739326246671,-500.0,0.00016712,2]
[352801045,1739326246681,-793.05,0.00016712,2]
[352801046,1739326246691,-500.0,0.00016712,2]
[352801047,1739326246701,-500.0,0.00016712,2]
[352801048,1739326246710,-500.0,0.00016712,2]
[352801049,1739326246720,-500.0,0.00016712,2]
[352801050,1739326246731,-500.0,0.00016712,2]
[352801051,1739326246741,-500.0,0.00016712,2]
[352801052,1739326246757,-500.0,0.00016712,2]
[352801053,1739326246794,-526.27206358,0.00016712,2]